[Event "December 12 Early 2023"]
[Site "https://www.chess.com"]
[Date "2023.12.12"]
[Round "6"]
[White "Hua, Lefong"]
[Black "Khromkin, Andrey"]
[Result "0-1"]
[Board "110"]
[TimeControl "180+1"]
[WhiteFideId "2602253"]
[BlackFideId "4154126"]
[WhiteElo "2666"]
[BlackElo "2443"]
[WhiteTeam "CAN"]
[BlackTeam "RUS"]
[WhiteClock "0:00:35"]
[BlackClock "0:01:03"]

1. d4 {[%clk 0:03:00]}  d5 {[%clk 0:02:56]} 2. c4 {[%clk 0:03:00]}  dxc4 {[%clk 0:02:53]} 3. Nf3 {[%clk 0:03:00]}  a6 {[%clk 0:02:52]} 4. a4 {[%clk 0:02:57]}  Nc6 {[%clk 0:02:52]} 5. e3 {[%clk 0:02:57]}  Bg4 {[%clk 0:02:52]} 6. Bxc4 {[%clk 0:02:56]}  e6 {[%clk 0:02:53]} 7. O-O {[%clk 0:02:56]}  Nf6 {[%clk 0:02:53]} 8. Nc3 {[%clk 0:02:56]}  Bd6 {[%clk 0:02:53]} 9. h3 {[%clk 0:02:56]}  Bh5 {[%clk 0:02:52]} 10. Be2 {[%clk 0:02:56]}  O-O {[%clk 0:02:51]} 11. b3 {[%clk 0:02:47]}  Qe7 {[%clk 0:02:51]} 12. Bb2 {[%clk 0:02:47]}  Rad8 {[%clk 0:02:45]} 13. Nd2 {[%clk 0:02:41]}  Bxe2 {[%clk 0:02:31]} 14. Qxe2 {[%clk 0:02:42]}  e5 {[%clk 0:02:28]} 15. d5 {[%clk 0:02:33]}  Nb4 {[%clk 0:02:28]} 16. e4 {[%clk 0:02:33]}  c6 {[%clk 0:02:28]} 17. dxc6 {[%clk 0:02:30]}  Nxc6 {[%clk 0:02:28]} 18. Nd5 {[%clk 0:02:14]}  Nxd5 {[%clk 0:02:26]} 19. exd5 {[%clk 0:02:15]}  Nd4 {[%clk 0:02:26]} 20. Qd3 {[%clk 0:02:06]}  Bb8 {[%clk 0:02:18]} 21. Bxd4 {[%clk 0:01:42]}  Rxd5 {[%clk 0:02:12]} 22. Nf3 {[%clk 0:01:42]}  exd4 {[%clk 0:02:10]} 23. Rad1 {[%clk 0:01:39]}  Rfd8 {[%clk 0:02:08]} 24. Rfe1 {[%clk 0:01:39]}  Qc7 {[%clk 0:02:04]} 25. g3 {[%clk 0:01:26]}  g6 {[%clk 0:02:03]} 26. Rc1 {[%clk 0:01:20]}  Rc5 {[%clk 0:01:55]} 27. Rxc5 {[%clk 0:01:16]}  Qxc5 {[%clk 0:01:56]} 28. Rd1 {[%clk 0:01:15]}  Rd6 {[%clk 0:01:52]} 29. Qe4 {[%clk 0:01:11]}  Ba7 {[%clk 0:01:26]} 30. Rd3 {[%clk 0:01:03]}  b5 {[%clk 0:01:22]} 31. axb5 {[%clk 0:00:58]}  axb5 {[%clk 0:01:22]} 32. b4 {[%clk 0:00:59]}  Qd5 {[%clk 0:01:16]} 33. Qe8+ {[%clk 0:00:50]}  Kg7 {[%clk 0:01:14]} 34. h4 {[%clk 0:00:47]}  Re6 {[%clk 0:01:12]} 35. Qc8 {[%clk 0:00:41]}  Qc4 {[%clk 0:01:09]} 36. Qxc4 {[%clk 0:00:37]}  bxc4 {[%clk 0:01:10]} 37. Rd1 {[%clk 0:00:38]}  d3 {[%clk 0:01:09]} 38. Kf1 {[%clk 0:00:36]}  Re2 {[%clk 0:01:04]} 39. Rd2 {[%clk 0:00:34]}  Rxd2 {[%clk 0:01:03]} 40. Nxd2 {[%clk 0:00:35]}  c3 {[%clk 0:01:03]} 0-1

[Event "December 12 Early 2023"]
[Site "https://www.chess.com"]
[Date "2023.12.12"]
[Round "6"]
[White "Novikov, Evgenij"]
[Black "Rios Escobar, Adan"]
[Result "1-0"]
[Board "114"]
[TimeControl "180+1"]
[WhiteFideId "4125380"]
[BlackFideId "3403645"]
[WhiteElo "2597"]
[BlackElo "2424"]
[WhiteTeam "RUS"]
[BlackTeam "CHI"]
[WhiteClock "0:00:03"]
[BlackClock "0:00:00"]

1. c4 {[%clk 0:03:00]}  Nf6 {[%clk 0:02:58]} 2. Nf3 {[%clk 0:02:56]}  g6 {[%clk 0:02:58]} 3. Nc3 {[%clk 0:02:55]}  Bg7 {[%clk 0:02:58]} 4. e4 {[%clk 0:02:55]}  d6 {[%clk 0:02:58]} 5. d4 {[%clk 0:02:55]}  O-O {[%clk 0:02:58]} 6. Be2 {[%clk 0:02:55]}  Na6 {[%clk 0:02:58]} 7. O-O {[%clk 0:02:54]}  e5 {[%clk 0:02:59]} 8. d5 {[%clk 0:02:54]}  Nc5 {[%clk 0:02:59]} 9. Qc2 {[%clk 0:02:54]}  a5 {[%clk 0:02:59]} 10. Bg5 {[%clk 0:02:54]}  h6 {[%clk 0:02:59]} 11. Be3 {[%clk 0:02:54]}  Ne8 {[%clk 0:02:48]} 12. Ne1 {[%clk 0:02:40]}  f5 {[%clk 0:02:47]} 13. exf5 {[%clk 0:02:37]}  gxf5 {[%clk 0:02:48]} 14. f4 {[%clk 0:02:35]}  e4 {[%clk 0:02:24]} 15. Qd2 {[%clk 0:02:32]}  Nf6 {[%clk 0:02:15]} 16. Nc2 {[%clk 0:02:30]}  Qe7 {[%clk 0:02:07]} 17. Kh1 {[%clk 0:02:23]}  Kh8 {[%clk 0:02:07]} 18. Nd4 {[%clk 0:02:14]}  Bd7 {[%clk 0:02:07]} 19. b3 {[%clk 0:02:14]}  Rf7 {[%clk 0:02:05]} 20. a3 {[%clk 0:02:09]}  Nd3 {[%clk 0:01:44]} 21. Bxd3 {[%clk 0:02:00]}  exd3 {[%clk 0:01:45]} 22. Qxd3 {[%clk 0:02:01]}  Ne4 {[%clk 0:01:45]} 23. Nxe4 {[%clk 0:01:53]}  fxe4 {[%clk 0:01:45]} 24. Qd2 {[%clk 0:01:49]}  c5 {[%clk 0:01:33]} 25. dxc6 {[%clk 0:01:39]}  bxc6 {[%clk 0:01:33]} 26. Rab1 {[%clk 0:01:35]}  Kh7 {[%clk 0:01:16]} 27. b4 {[%clk 0:01:26]}  axb4 {[%clk 0:01:14]} 28. axb4 {[%clk 0:01:27]}  Ra3 {[%clk 0:01:13]} 29. b5 {[%clk 0:01:27]}  Rd3 {[%clk 0:01:13]} 30. Qf2 {[%clk 0:01:18]}  cxb5 {[%clk 0:01:06]} 31. cxb5 {[%clk 0:01:10]}  Bc8 {[%clk 0:01:06]} 32. Nc6 {[%clk 0:01:07]}  Qf6 {[%clk 0:01:00]} 33. Rfd1 {[%clk 0:00:53]}  Bb7 {[%clk 0:00:52]} 34. Na5 {[%clk 0:00:48]}  Qc3 {[%clk 0:00:28]} 35. Nxb7 {[%clk 0:00:43]}  Rxb7 {[%clk 0:00:25]} 36. Rxd3 {[%clk 0:00:34]}  Qxd3 {[%clk 0:00:26]} 37. Re1 {[%clk 0:00:18]}  Rxb5 {[%clk 0:00:25]} 38. f5 {[%clk 0:00:18]}  Rb1 {[%clk 0:00:23]} 39. h4 {[%clk 0:00:14]}  Rxe1+ {[%clk 0:00:21]} 40. Qxe1 {[%clk 0:00:15]}  Qc3 {[%clk 0:00:17]} 41. Qg3 {[%clk 0:00:14]}  Qa1+ {[%clk 0:00:17]} 42. Bg1 {[%clk 0:00:11]}  Qf6 {[%clk 0:00:13]} 43. Qf4 {[%clk 0:00:10]}  Qe5 {[%clk 0:00:12]} 44. Qf2 {[%clk 0:00:08]}  Bf6 {[%clk 0:00:09]} 45. g4 {[%clk 0:00:08]}  d5 {[%clk 0:00:09]} 46. Bh2 {[%clk 0:00:07]}  Qa1+ {[%clk 0:00:06]} 47. Kg2 {[%clk 0:00:08]}  d4 {[%clk 0:00:06]} 48. Bf4 {[%clk 0:00:05]}  e3 {[%clk 0:00:04]} 49. Qe2 {[%clk 0:00:04]}  Qa8+ {[%clk 0:00:04]} 50. Kg3 {[%clk 0:00:03]}  Qe4 {[%clk 0:00:03]} 51. g5 {[%clk 0:00:03]}  hxg5 {[%clk 0:00:02]} 52. hxg5 {[%clk 0:00:04]}  Be5 {[%clk 0:00:01]} 53. Qh5+ {[%clk 0:00:04]}  Kg8 {[%clk 0:00:01]} 54. Qg6+ {[%clk 0:00:05]}  Kf8 {[%clk 0:00:00]} 55. Qh6+ {[%clk 0:00:03]} 1-0

[Event "December 12 Early 2023"]
[Site "https://www.chess.com"]
[Date "2023.12.12"]
[Round "6"]
[White "Janaszak, Dawid"]
[Black "Marchesich, Giovanni"]
[Result "1/2-1/2"]
[Board "115"]
[TimeControl "180+1"]
[WhiteFideId "1119206"]
[BlackFideId "2824790"]
[WhiteElo "2594"]
[BlackElo "2423"]
[WhiteTeam "POL"]
[BlackTeam "ITA"]
[WhiteClock "0:00:30"]
[BlackClock "0:00:05"]

1. c4 {[%clk 0:03:00]}  b6 {[%clk 0:02:57]} 2. e4 {[%clk 0:02:58]}  e5 {[%clk 0:02:56]} 3. f4 {[%clk 0:02:57]}  exf4 {[%clk 0:02:55]} 4. Nf3 {[%clk 0:02:57]}  Bb7 {[%clk 0:02:55]} 5. Nc3 {[%clk 0:02:56]}  g5 {[%clk 0:02:55]} 6. d4 {[%clk 0:02:55]}  g4 {[%clk 0:02:54]} 7. Ne5 {[%clk 0:02:55]}  Qh4+ {[%clk 0:02:49]} 8. Kd2 {[%clk 0:02:56]}  h5 {[%clk 0:02:44]} 9. Nd5 {[%clk 0:02:52]}  Qf2+ {[%clk 0:02:23]} 10. Kc3 {[%clk 0:02:49]}  Bxd5 {[%clk 0:02:10]} 11. cxd5 {[%clk 0:02:43]}  Nf6 {[%clk 0:02:00]} 12. Bd3 {[%clk 0:02:41]}  a5 {[%clk 0:01:52]} 13. a3 {[%clk 0:01:46]}  Bb4+ {[%clk 0:01:50]} 14. Kb3 {[%clk 0:01:47]}  Qxd4 {[%clk 0:01:40]} 15. Bxf4 {[%clk 0:01:43]}  Bd6 {[%clk 0:01:34]} 16. Bd2 {[%clk 0:01:02]}  Qxe5 {[%clk 0:01:24]} 17. Bc3 {[%clk 0:01:02]}  Qe7 {[%clk 0:01:21]} 18. e5 {[%clk 0:01:01]}  Nxd5 {[%clk 0:00:47]} 19. exd6 {[%clk 0:01:01]}  Nxc3 {[%clk 0:00:47]} 20. Re1 {[%clk 0:00:47]}  Nxd1 {[%clk 0:00:44]} 21. Rxe7+ {[%clk 0:00:47]}  Kd8 {[%clk 0:00:43]} 22. Rxd1 {[%clk 0:00:43]}  Nc6 {[%clk 0:00:39]} 23. Rxf7 {[%clk 0:00:39]}  cxd6 {[%clk 0:00:38]} 24. Bb5 {[%clk 0:00:34]}  Ne5 {[%clk 0:00:08]} 25. Rg7 {[%clk 0:00:32]}  Kc7 {[%clk 0:00:09]} 26. Rc1+ {[%clk 0:00:32]}  Kb7 {[%clk 0:00:09]} 27. Bxd7 {[%clk 0:00:31]}  Nxd7 {[%clk 0:00:08]} 28. Rxd7+ {[%clk 0:00:31]}  Ka6 {[%clk 0:00:09]} 29. Rxd6 {[%clk 0:00:31]}  Rad8 {[%clk 0:00:09]} 30. Rcc6 {[%clk 0:00:28]}  Rxd6 {[%clk 0:00:09]} 31. Rxd6 {[%clk 0:00:29]}  h4 {[%clk 0:00:09]} 32. a4 {[%clk 0:00:28]}  Re8 {[%clk 0:00:07]} 33. Rg6 {[%clk 0:00:25]}  Re3+ {[%clk 0:00:07]} 34. Ka2 {[%clk 0:00:25]}  g3 {[%clk 0:00:06]} 35. h3 {[%clk 0:00:24]}  Re2 {[%clk 0:00:05]} 36. Rg4 {[%clk 0:00:24]}  Rxg2 {[%clk 0:00:05]} 37. Rxh4 {[%clk 0:00:25]}  Rh2 {[%clk 0:00:06]} 38. Kb3 {[%clk 0:00:22]}  g2 {[%clk 0:00:06]} 39. Rg4 {[%clk 0:00:22]}  Rxh3+ {[%clk 0:00:06]} 40. Ka2 {[%clk 0:00:22]}  Rh2 {[%clk 0:00:05]} 41. Rg7 {[%clk 0:00:23]}  Rh4 {[%clk 0:00:02]} 42. Rxg2 {[%clk 0:00:22]}  Rxa4+ {[%clk 0:00:03]} 43. Kb3 {[%clk 0:00:22]}  Rb4+ {[%clk 0:00:03]} 44. Ka3 {[%clk 0:00:23]}  Rb5 {[%clk 0:00:04]} 45. Rg7 {[%clk 0:00:23]}  Rc5 {[%clk 0:00:05]} 46. b3 {[%clk 0:00:22]}  Rb5 {[%clk 0:00:05]} 47. Rg6 {[%clk 0:00:23]}  Rb4 {[%clk 0:00:06]} 48. Rg7 {[%clk 0:00:23]}  Kb5 {[%clk 0:00:06]} 49. Rg5+ {[%clk 0:00:23]}  Kc6 {[%clk 0:00:07]} 50. Rg6+ {[%clk 0:00:24]}  Kd5 {[%clk 0:00:07]} 51. Rg5+ {[%clk 0:00:25]}  Kd4 {[%clk 0:00:06]} 52. Rg4+ {[%clk 0:00:25]}  Kc3 {[%clk 0:00:07]} 53. Rg3+ {[%clk 0:00:25]}  Kd2 {[%clk 0:00:07]} 54. Rh3 {[%clk 0:00:24]}  Rd4 {[%clk 0:00:05]} 55. Rh6 {[%clk 0:00:24]}  Rb4 {[%clk 0:00:04]} 56. Rh3 {[%clk 0:00:24]}  Ke2 {[%clk 0:00:04]} 57. Rg3 {[%clk 0:00:24]}  Kf2 {[%clk 0:00:04]} 58. Rc3 {[%clk 0:00:24]}  Ke2 {[%clk 0:00:04]} 59. Rh3 {[%clk 0:00:25]}  Kd2 {[%clk 0:00:04]} 60. Rg3 {[%clk 0:00:25]}  Rb5 {[%clk 0:00:03]} 61. Rg2+ {[%clk 0:00:25]}  Kc3 {[%clk 0:00:03]} 62. Rg3+ {[%clk 0:00:26]}  Kd4 {[%clk 0:00:04]} 63. Rh3 {[%clk 0:00:26]}  Kc5 {[%clk 0:00:04]} 64. Rh5+ {[%clk 0:00:26]}  Kc6 {[%clk 0:00:05]} 65. Rh7 {[%clk 0:00:27]}  Rc5 {[%clk 0:00:04]} 66. Rh6+ {[%clk 0:00:27]}  Kb5 {[%clk 0:00:05]} 67. Rh3 {[%clk 0:00:27]}  Rd5 {[%clk 0:00:05]} 68. Rg3 {[%clk 0:00:26]}  Rd4 {[%clk 0:00:06]} 69. Rg5+ {[%clk 0:00:26]}  Ka6 {[%clk 0:00:05]} 70. Rg3 {[%clk 0:00:27]}  Re4 {[%clk 0:00:06]} 71. Rg6 {[%clk 0:00:27]}  Re5 {[%clk 0:00:06]} 72. Ka4 {[%clk 0:00:26]}  Re4+ {[%clk 0:00:06]} 73. Ka3 {[%clk 0:00:26]}  Re7 {[%clk 0:00:06]} 74. Rh6 {[%clk 0:00:27]}  Rc7 {[%clk 0:00:07]} 75. Rg6 {[%clk 0:00:27]}  Kb5 {[%clk 0:00:07]} 76. Rg5+ {[%clk 0:00:27]}  Rc5 {[%clk 0:00:07]} 77. Rg6 {[%clk 0:00:28]}  Rc6 {[%clk 0:00:08]} 78. Rg5+ {[%clk 0:00:29]}  Ka6 {[%clk 0:00:08]} 79. Rg4 {[%clk 0:00:29]}  b5 {[%clk 0:00:09]} 80. Rg8 {[%clk 0:00:29]}  Kb6 {[%clk 0:00:09]} 81. Rb8+ {[%clk 0:00:28]}  Ka6 {[%clk 0:00:06]} 82. Ra8+ {[%clk 0:00:29]}  Kb6 {[%clk 0:00:07]} 83. Rb8+ {[%clk 0:00:29]}  Kc5 {[%clk 0:00:07]} 84. Ra8 {[%clk 0:00:29]}  Kb6 {[%clk 0:00:05]} 85. Rb8+ {[%clk 0:00:30]} 1/2-1/2

[Event "December 12 Early 2023"]
[Site "https://www.chess.com"]
[Date "2023.12.12"]
[Round "6"]
[White "Leve, Nitai"]
[Black "Hajiyev, Kanan"]
[Result "0-1"]
[Board "118"]
[TimeControl "180+1"]
[WhiteFideId "2006898"]
[BlackFideId "13404148"]
[WhiteElo "2419"]
[BlackElo "2557"]
[WhiteTeam "USA"]
[BlackTeam "AZE"]
[WhiteClock "0:00:02"]
[BlackClock "0:00:09"]

1. d4 {[%clk 0:03:00]}  c6 {[%clk 0:03:00]} 2. c4 {[%clk 0:02:57]}  d5 {[%clk 0:03:01]} 3. Nc3 {[%clk 0:02:57]}  Nf6 {[%clk 0:03:02]} 4. cxd5 {[%clk 0:02:51]}  cxd5 {[%clk 0:03:02]} 5. Bf4 {[%clk 0:02:51]}  a6 {[%clk 0:03:03]} 6. e3 {[%clk 0:02:49]}  Nc6 {[%clk 0:03:04]} 7. Qc2 {[%clk 0:02:48]}  Bg4 {[%clk 0:03:01]} 8. Bd3 {[%clk 0:02:47]}  e6 {[%clk 0:03:01]} 9. a3 {[%clk 0:02:46]}  Bd6 {[%clk 0:03:01]} 10. Bg3 {[%clk 0:02:46]}  O-O {[%clk 0:03:00]} 11. f3 {[%clk 0:02:47]}  Bh5 {[%clk 0:02:58]} 12. Nge2 {[%clk 0:02:47]}  Bg6 {[%clk 0:02:56]} 13. O-O {[%clk 0:02:33]}  Rc8 {[%clk 0:02:54]} 14. Rac1 {[%clk 0:02:07]}  Bxd3 {[%clk 0:02:48]} 15. Qxd3 {[%clk 0:01:55]}  b5 {[%clk 0:02:48]} 16. Bh4 {[%clk 0:01:45]}  Be7 {[%clk 0:02:45]} 17. e4 {[%clk 0:01:26]}  b4 {[%clk 0:02:27]} 18. axb4 {[%clk 0:01:15]}  Nxb4 {[%clk 0:02:28]} 19. Qb1 {[%clk 0:01:06]}  dxe4 {[%clk 0:02:22]} 20. fxe4 {[%clk 0:01:01]}  Ng4 {[%clk 0:02:22]} 21. Bxe7 {[%clk 0:00:46]}  Qxe7 {[%clk 0:02:23]} 22. h3 {[%clk 0:00:41]}  Ne3 {[%clk 0:02:21]} 23. Rf3 {[%clk 0:00:40]}  Qg5 {[%clk 0:02:19]} 24. Nf4 {[%clk 0:00:34]}  Nc4 {[%clk 0:02:11]} 25. Rd1 {[%clk 0:00:25]}  e5 {[%clk 0:02:06]} 26. Nfd5 {[%clk 0:00:20]}  Nxd5 {[%clk 0:02:02]} 27. Nxd5 {[%clk 0:00:21]}  exd4 {[%clk 0:02:01]} 28. Qd3 {[%clk 0:00:19]}  Nxb2 {[%clk 0:01:55]} 29. Rg3 {[%clk 0:00:17]}  Qe5 {[%clk 0:01:23]} 30. Qxd4 {[%clk 0:00:12]}  Qxg3 {[%clk 0:01:23]} 31. Qxb2 {[%clk 0:00:08]}  Kh8 {[%clk 0:01:11]} 32. Rf1 {[%clk 0:00:08]}  a5 {[%clk 0:01:06]} 33. Rf3 {[%clk 0:00:08]}  Qe1+ {[%clk 0:01:05]} 34. Kh2 {[%clk 0:00:08]}  a4 {[%clk 0:01:04]} 35. Rg3 {[%clk 0:00:08]}  f6 {[%clk 0:01:02]} 36. Ne7 {[%clk 0:00:08]}  Rc1 {[%clk 0:00:51]} 37. Rg4 {[%clk 0:00:05]}  Qg1+ {[%clk 0:00:37]} 38. Kg3 {[%clk 0:00:05]}  Re1 {[%clk 0:00:34]} 39. Qa2 {[%clk 0:00:03]}  Re3+ {[%clk 0:00:32]} 40. Kf4 {[%clk 0:00:03]}  g5+ {[%clk 0:00:22]} 41. Kf5 {[%clk 0:00:04]}  Qf1+ {[%clk 0:00:19]} 42. Ke6 {[%clk 0:00:02]}  Qa6+ {[%clk 0:00:16]} 43. Kf5 {[%clk 0:00:02]}  Qb5+ {[%clk 0:00:11]} 44. Nd5 {[%clk 0:00:02]}  Qd7# {[%clk 0:00:09]} 0-1

[Event "December 12 Early 2023"]
[Site "https://www.chess.com"]
[Date "2023.12.12"]
[Round "6"]
[White "Vakhidov, Shahzod"]
[Black "Ovezdurdyyeva, Jemal"]
[Result "0-1"]
[Board "121"]
[TimeControl "180+1"]
[WhiteFideId "14205270"]
[BlackFideId "14001888"]
[WhiteElo "2537"]
[BlackElo "2411"]
[WhiteTeam "UZB"]
[BlackTeam "TKM"]
[WhiteClock "0:00:00"]
[BlackClock "0:00:20"]

1. d4 {[%clk 0:03:00]}  Nf6 {[%clk 0:02:59]} 2. Nf3 {[%clk 0:03:01]}  g6 {[%clk 0:02:58]} 3. g3 {[%clk 0:03:01]}  Bg7 {[%clk 0:02:58]} 4. Bg2 {[%clk 0:03:02]}  O-O {[%clk 0:02:58]} 5. c4 {[%clk 0:03:03]}  d5 {[%clk 0:02:54]} 6. cxd5 {[%clk 0:03:04]}  Nxd5 {[%clk 0:02:54]} 7. O-O {[%clk 0:03:04]}  b6 {[%clk 0:02:53]} 8. e4 {[%clk 0:03:03]}  Nf6 {[%clk 0:02:52]} 9. Nc3 {[%clk 0:02:58]}  Bb7 {[%clk 0:02:52]} 10. Qe2 {[%clk 0:02:56]}  e6 {[%clk 0:02:46]} 11. Rd1 {[%clk 0:02:52]}  Qe7 {[%clk 0:02:43]} 12. Bf4 {[%clk 0:02:51]}  Na6 {[%clk 0:02:23]} 13. Rac1 {[%clk 0:02:41]}  Rad8 {[%clk 0:02:20]} 14. h3 {[%clk 0:02:30]}  c5 {[%clk 0:02:19]} 15. e5 {[%clk 0:02:15]}  Nd5 {[%clk 0:02:17]} 16. Bg5 {[%clk 0:01:37]}  Nxc3 {[%clk 0:02:16]} 17. bxc3 {[%clk 0:01:37]}  Bxf3 {[%clk 0:02:12]} 18. Qxa6 {[%clk 0:01:10]}  Qxg5 {[%clk 0:02:10]} 19. Bxf3 {[%clk 0:01:10]}  Qf5 {[%clk 0:01:55]} 20. Bg4 {[%clk 0:00:58]}  Qe4 {[%clk 0:01:49]} 21. Qxa7 {[%clk 0:00:56]}  cxd4 {[%clk 0:01:46]} 22. cxd4 {[%clk 0:00:52]}  Rxd4 {[%clk 0:01:42]} 23. Qxb6 {[%clk 0:00:34]}  Bxe5 {[%clk 0:01:34]} 24. Rxd4 {[%clk 0:00:28]}  Bxd4 {[%clk 0:01:33]} 25. Qc6 {[%clk 0:00:27]}  Qe5 {[%clk 0:01:21]} 26. Kg2 {[%clk 0:00:27]}  Rb8 {[%clk 0:01:18]} 27. a4 {[%clk 0:00:24]}  Rb2 {[%clk 0:01:08]} 28. Rc2 {[%clk 0:00:24]}  Rb1 {[%clk 0:01:08]} 29. Re2 {[%clk 0:00:21]}  Qf6 {[%clk 0:01:06]} 30. a5 {[%clk 0:00:16]}  Kg7 {[%clk 0:01:04]} 31. a6 {[%clk 0:00:16]}  Ra1 {[%clk 0:01:00]} 32. Bf3 {[%clk 0:00:17]}  h5 {[%clk 0:00:44]} 33. h4 {[%clk 0:00:16]}  Qf5 {[%clk 0:00:41]} 34. Qb7 {[%clk 0:00:13]}  Qc5 {[%clk 0:00:30]} 35. Qc6 {[%clk 0:00:06]}  Qa3 {[%clk 0:00:24]} 36. Qd7 {[%clk 0:00:06]}  Bf6 {[%clk 0:00:20]} 37. Rxe6 {[%clk 0:00:00]}  Qc1 {[%clk 0:00:20]} 0-1

[Event "December 12 Early 2023"]
[Site "https://www.chess.com"]
[Date "2023.12.12"]
[Round "6"]
[White "Onoprijchuk, Boris"]
[Black "Jimenez Almeida, Luis David"]
[Result "1-0"]
[Board "124"]
[TimeControl "180+1"]
[WhiteFideId "4171179"]
[BlackFideId "22242244"]
[WhiteElo "2407"]
[BlackElo "2522"]
[WhiteTeam "RUS"]
[BlackTeam "ESP"]
[WhiteClock "0:00:14"]
[BlackClock "0:00:29"]

1. e4 {[%clk 0:02:59]}  e5 {[%clk 0:02:58]} 2. Nf3 {[%clk 0:02:58]}  Nc6 {[%clk 0:02:58]} 3. Bb5 {[%clk 0:02:58]}  a6 {[%clk 0:02:58]} 4. Ba4 {[%clk 0:02:58]}  Nf6 {[%clk 0:02:57]} 5. O-O {[%clk 0:02:57]}  b5 {[%clk 0:02:56]} 6. Bb3 {[%clk 0:02:56]}  Be7 {[%clk 0:02:56]} 7. d3 {[%clk 0:02:53]}  O-O {[%clk 0:02:54]} 8. Nc3 {[%clk 0:02:51]}  Na5 {[%clk 0:02:50]} 9. Nxe5 {[%clk 0:02:48]}  Nxb3 {[%clk 0:02:49]} 10. axb3 {[%clk 0:02:47]}  d5 {[%clk 0:02:49]} 11. exd5 {[%clk 0:02:37]}  Nxd5 {[%clk 0:02:50]} 12. Nxd5 {[%clk 0:02:34]}  Qxd5 {[%clk 0:02:51]} 13. Qf3 {[%clk 0:02:33]}  Qxe5 {[%clk 0:02:40]} 14. Qxa8 {[%clk 0:02:31]}  Bd6 {[%clk 0:02:40]} 15. g3 {[%clk 0:02:20]}  Bh3 {[%clk 0:02:39]} 16. Qe4 {[%clk 0:01:44]}  Qh5 {[%clk 0:02:06]} 17. Bf4 {[%clk 0:01:30]}  Bxf1 {[%clk 0:02:03]} 18. Rxf1 {[%clk 0:01:27]}  Bxf4 {[%clk 0:01:54]} 19. Qxf4 {[%clk 0:01:28]}  Qe2 {[%clk 0:01:54]} 20. Qxc7 {[%clk 0:01:24]}  h5 {[%clk 0:01:54]} 21. h4 {[%clk 0:01:21]}  Re8 {[%clk 0:01:52]} 22. Qc6 {[%clk 0:01:16]}  Re6 {[%clk 0:01:52]} 23. Qc8+ {[%clk 0:01:11]}  Kh7 {[%clk 0:01:51]} 24. b4 {[%clk 0:01:03]}  Qg4 {[%clk 0:01:35]} 25. Qc7 {[%clk 0:00:51]}  Rf6 {[%clk 0:01:31]} 26. Qe7 {[%clk 0:00:43]}  Qd4 {[%clk 0:01:22]} 27. Qe4+ {[%clk 0:00:43]}  Qxe4 {[%clk 0:01:21]} 28. dxe4 {[%clk 0:00:44]}  Rd6 {[%clk 0:01:20]} 29. f3 {[%clk 0:00:38]}  Kg6 {[%clk 0:01:14]} 30. Rf2 {[%clk 0:00:35]}  f5 {[%clk 0:01:14]} 31. exf5+ {[%clk 0:00:33]}  Kxf5 {[%clk 0:01:15]} 32. Re2 {[%clk 0:00:33]}  Rd4 {[%clk 0:01:14]} 33. c3 {[%clk 0:00:32]}  Rd1+ {[%clk 0:01:14]} 34. Kf2 {[%clk 0:00:32]}  Rh1 {[%clk 0:01:11]} 35. Rd2 {[%clk 0:00:26]}  Ke5 {[%clk 0:01:08]} 36. Ke3 {[%clk 0:00:21]}  Re1+ {[%clk 0:01:06]} 37. Re2 {[%clk 0:00:21]}  Rb1 {[%clk 0:01:06]} 38. Kd3+ {[%clk 0:00:18]}  Kd5 {[%clk 0:01:02]} 39. f4 {[%clk 0:00:17]}  Rg1 {[%clk 0:01:01]} 40. Re5+ {[%clk 0:00:17]}  Kd6 {[%clk 0:01:00]} 41. Rg5 {[%clk 0:00:17]}  Rg2 {[%clk 0:00:58]} 42. Rxg7 {[%clk 0:00:16]}  Rxb2 {[%clk 0:00:56]} 43. Rg6+ {[%clk 0:00:16]}  Kd5 {[%clk 0:00:56]} 44. Rxa6 {[%clk 0:00:15]}  Rg2 {[%clk 0:00:41]} 45. Rg6 {[%clk 0:00:15]}  Rf2 {[%clk 0:00:30]} 46. Rg5+ {[%clk 0:00:15]}  Kc6 {[%clk 0:00:29]} 47. Ke3 {[%clk 0:00:14]} 1-0

[Event "December 12 Early 2023"]
[Site "https://www.chess.com"]
[Date "2023.12.12"]
[Round "6"]
[White "Zaksaite, Salomeja"]
[Black "Valle Luis, Leo"]
[Result "0-1"]
[Board "129"]
[TimeControl "180+1"]
[WhiteFideId "12801496"]
[BlackFideId "54577187"]
[WhiteElo "2373"]
[BlackElo "2509"]
[WhiteTeam "LTU"]
[BlackTeam "ESP"]
[WhiteClock "0:00:00"]
[BlackClock "0:00:09"]

1. e4 {[%clk 0:03:00]}  c6 {[%clk 0:02:58]} 2. d4 {[%clk 0:03:00]}  d5 {[%clk 0:02:58]} 3. exd5 {[%clk 0:03:01]}  cxd5 {[%clk 0:02:59]} 4. Bd3 {[%clk 0:03:00]}  Nc6 {[%clk 0:02:59]} 5. c3 {[%clk 0:03:00]}  Nf6 {[%clk 0:03:00]} 6. Bf4 {[%clk 0:02:59]}  g6 {[%clk 0:03:01]} 7. Nf3 {[%clk 0:02:55]}  Bg7 {[%clk 0:03:01]} 8. O-O {[%clk 0:02:54]}  O-O {[%clk 0:03:02]} 9. Re1 {[%clk 0:02:51]}  Bf5 {[%clk 0:03:01]} 10. Bf1 {[%clk 0:02:49]}  Rc8 {[%clk 0:02:58]} 11. Nbd2 {[%clk 0:02:46]}  h6 {[%clk 0:02:57]} 12. Qb3 {[%clk 0:02:42]}  Na5 {[%clk 0:02:42]} 13. Qa3 {[%clk 0:02:41]}  Re8 {[%clk 0:02:36]} 14. Ne5 {[%clk 0:02:27]}  a6 {[%clk 0:02:30]} 15. h3 {[%clk 0:01:31]}  Nc6 {[%clk 0:02:25]} 16. g4 {[%clk 0:01:09]}  Be6 {[%clk 0:02:23]} 17. Bg2 {[%clk 0:01:07]}  Nxe5 {[%clk 0:02:14]} 18. dxe5 {[%clk 0:01:00]}  Nd7 {[%clk 0:02:12]} 19. Bg3 {[%clk 0:00:57]}  Qb6 {[%clk 0:02:10]} 20. Nb3 {[%clk 0:00:51]}  Nc5 {[%clk 0:01:57]} 21. Nd4 {[%clk 0:00:47]}  Nd3 {[%clk 0:01:52]} 22. Re2 {[%clk 0:00:47]}  Rc4 {[%clk 0:01:41]} 23. Rd1 {[%clk 0:00:46]}  Nc5 {[%clk 0:01:37]} 24. b4 {[%clk 0:00:34]}  Nd7 {[%clk 0:01:15]} 25. Nxe6 {[%clk 0:00:30]}  fxe6 {[%clk 0:01:16]} 26. Rxd5 {[%clk 0:00:30]}  Qc7 {[%clk 0:01:00]} 27. Rd3 {[%clk 0:00:10]}  Rc8 {[%clk 0:00:48]} 28. Qb3 {[%clk 0:00:08]}  Nf8 {[%clk 0:00:46]} 29. Ree3 {[%clk 0:00:03]}  b5 {[%clk 0:00:46]} 30. f4 {[%clk 0:00:03]}  g5 {[%clk 0:00:39]} 31. f5 {[%clk 0:00:03]}  Qb6 {[%clk 0:00:35]} 32. fxe6 {[%clk 0:00:03]}  Ng6 {[%clk 0:00:33]} 33. Bd5 {[%clk 0:00:02]}  R4c7 {[%clk 0:00:29]} 34. Kg2 {[%clk 0:00:03]}  Rf8 {[%clk 0:00:24]} 35. Qd1 {[%clk 0:00:02]}  Nf4+ {[%clk 0:00:18]} 36. Bxf4 {[%clk 0:00:02]}  gxf4 {[%clk 0:00:19]} 37. Re4 {[%clk 0:00:02]}  a5 {[%clk 0:00:12]} 38. Bb3 {[%clk 0:00:02]}  axb4 {[%clk 0:00:10]} 39. cxb4 {[%clk 0:00:03]}  Qc6 {[%clk 0:00:11]} 40. Kf3 {[%clk 0:00:01]}  Qa8 {[%clk 0:00:09]} 41. Rd8 {[%clk 0:00:02]}  Qxd8 {[%clk 0:00:08]} 42. Qxd8 {[%clk 0:00:02]}  Rxd8 {[%clk 0:00:09]} 43. Kxf4 {[%clk 0:00:00]}  Rc3 {[%clk 0:00:09]} 0-1